fUSD/lending_fUSD_20260307
["ID","MTS","AMOUNT","RATE_DAILY","PERIOD"]
[407878080,1772871032407,-1000.0,0.00016171,2]
[407878081,1772871032416,-28411.7261,0.00016171,2]
[407878082,1772871032426,-503.0,0.00016231,4]
[407878083,1772871032435,-160.35,0.00016378,2]
[407878084,1772871032445,-167.07,0.00016393,2]
[407878085,1772871032455,-200.0,0.00016545,2]
[407878086,1772871032464,-500.0,0.00016608,2]
[407878087,1772871032473,-167.09,0.00016663,2]
[407878088,1772871032484,-166.66,0.00016701,2]
[407878089,1772871032494,-10000.0,0.00017,2]
[407878090,1772871032503,-10000.0,0.00017,2]
[407878091,1772871032512,-10000.0,0.00017,2]
[407878092,1772871032522,-10000.0,0.00017,2]
[407878093,1772871032531,-10000.0,0.00017,2]
[407878094,1772871032544,-10000.0,0.00017,2]
[407878095,1772871032553,-10000.0,0.00017,2]
[407878096,1772871032563,-10000.0,0.00017,2]
[407878097,1772871032572,-160.35,0.00017158,2]
[407878098,1772871032582,-166.66,0.00017253,2]
[407878099,1772871032591,-244.0,0.00017405,2]
[407878100,1772871032601,-503.7310091,0.00017541,2]
[407878101,1772871032611,-166.66,0.00017804,2]
[407878102,1772871032621,-278.56267692,0.000179,2]
[407878103,1772871032631,-278.56267691,0.000179,2]
[407878104,1772871032640,-278.56267691,0.000179,2]
[407878105,1772871032649,-278.56267691,0.000179,2]
[407878106,1772871032659,-371.41690258,0.000179,2]
[407878107,1772871032668,-505.41983925,0.000179,2]
[407878108,1772871032677,-160.35,0.00017938,2]
[407878109,1772871032690,-199.8,0.00018,4]
[407878110,1772871032700,-301.33104258,0.00018,5]
[407878111,1772871032710,-166.66,0.00018355,2]
[407878112,1772871032719,-500.0,0.00018355,2]
[407878113,1772871032728,-1225.1207181,0.00018421,2]
[407878114,1772871032741,-1600.0,0.00018443,2]
[407878115,1772871032750,-204.18678635,0.00018587,2]
[407878116,1772871032762,-160.35,0.00018717,2]
[407878117,1772871032773,-574.0,0.00018727,2]
[407878118,1772871032783,-204.18678635,0.00018771,2]
[407878119,1772871032793,-1852.42,0.00018896,2]
[407878120,1772871032803,-166.66,0.00018907,2]
[407878121,1772871032814,-200.0,0.00018932,2]
[407878122,1772871032825,-204.18678635,0.00018955,2]
[407878123,1772871032835,-2567.11739689,0.00019,2]
[407878124,1772871032844,-1900.0,0.00019,6]
[407878125,1772871032855,-3900.0,0.000191,6]
[407878126,1772871032866,-503.0,0.0001913,7]
[407878127,1772871032876,-172.78723296,0.0001915,2]
[407878128,1772871032886,-2000.0,0.000192,2]
[407878129,1772871032897,-173.76288913,0.000192,2]
[407878130,1772871032906,-5900.0,0.000192,7]
[407878131,1772871032921,-2500.0,0.000192,2]
[407878132,1772871032931,-173.7628891,0.00019278,2]
[407878133,1772871032942,-165119.6382485,0.000193,2]
[407878134,1772871032954,-20249.59708021,0.000193,2]
[407878135,1772871032998,-53806.768029,0.000193,2]
[407878136,1772871033025,-2692.27733534,0.000193,2]
[407878137,1772871033037,-2831.30578171,0.000193,2]
[407878138,1772871038306,-985.85580431,0.0001633,2]
[407878139,1772871038315,-298.0,0.00017336,2]
[407878140,1772871038326,-11762.04434151,0.000193,2]
[407878176,1772871040398,-4920.877,0.000193,2]
[407878178,1772871040890,-213520.88838373,0.000193,2]
[407878179,1772871040900,-7900.0,0.000193,7]
[407878180,1772871040910,-205.0,0.00019302,2]
[407878181,1772871040919,-205.0,0.00019324,2]
[407878182,1772871040932,-205.0,0.00019338,2]
[407878183,1772871040941,-205.0,0.00019352,2]
[407878184,1772871040951,-173.7628891,0.00019356,2]
[407878185,1772871040960,-662.00214263,0.00019358,2]
[407878186,1772871040969,-574.0,0.00019399,2]
[407878187,1772871040979,-9900.0,0.000194,7]
[407878188,1772871040988,-173.7628891,0.00019433,2]
[407878190,1772871040998,-166.66,0.00019458,2]
[407878192,1772871041007,-220.0984417,0.000195,30]
[407878194,1772871041020,-1900.0,0.000195,7]
[407878196,1772871041029,-2856.1739563,0.00019501,2]
[407878198,1772871041038,-173.7628891,0.00019511,2]
[407878199,1772871041048,-181.885,0.0001955,2]
[407878201,1772871041057,-3106.924,0.0001955,2]
[407878202,1772871041066,-4136.9726,0.00019572,2]
[407878203,1772871041077,-74880.1209,0.00019572,2]
[407878204,1772871041087,-173.7628891,0.00019589,2]
[407878205,1772871041098,-1900.0,0.000196,7]
[407878206,1772871041110,-2856.1739563,0.00019601,2]
[407878207,1772871041121,-662.00214262,0.00019616,2]
[407878208,1772871041131,-3770.27,0.00019653,2]
[407878209,1772871041141,-173.7628891,0.00019667,2]
[407878210,1772871041150,-500.0,0.00019672,2]
[407878211,1772871041160,-776.0,0.00019672,2]
[407878212,1772871041171,-150.0,0.00019672,2]
[407878213,1772871041182,-150.0,0.00019672,2]
[407878214,1772871041192,-1436.0,0.00019672,2]
[407878215,1772871041201,-503.0,0.00019672,2]
[407878216,1772871041211,-500.0,0.00019672,2]
[407878217,1772871041220,-423.0,0.00019672,2]
[407878218,1772871041230,-500.0,0.00019672,2]
[407878219,1772871041239,-150.0,0.00019672,2]
[407878220,1772871041250,-1212.0,0.00019672,2]
[407878221,1772871041259,-678.0,0.00019672,2]
[407878222,1772871041270,-500.0,0.00019672,2]
[407878223,1772871041279,-500.0,0.00019672,2]
[407878224,1772871041288,-151.12456673,0.00019672,2]
[407878225,1772871041298,-500.0,0.00019672,2]
[407878226,1772871041307,-500.0,0.00019672,2]
[407878227,1772871041316,-500.0,0.00019672,2]
[407878228,1772871041325,-500.0,0.00019672,2]
[407878229,1772871041335,-164.64776858,0.00019672,2]
[407878230,1772871041345,-150.0,0.00019672,2]
[407878231,1772871041355,-150.0,0.00019672,2]
[407878232,1772871041365,-150.0,0.00019672,2]
[407878233,1772871041375,-150.0,0.00019672,2]
[407878234,1772871041386,-500.0,0.00019672,2]
[407878235,1772871041396,-500.0,0.00019672,2]
[407878236,1772871041405,-500.0,0.00019672,2]
[407878237,1772871041415,-500.0,0.00019672,2]
[407878238,1772871041426,-1900.0,0.000197,7]
[407878239,1772871041436,-2856.1739563,0.00019701,2]
[407878240,1772871041445,-535.55,0.00019711,2]
[407878241,1772871041456,-377.17,0.00019711,2]
[407878242,1772871041465,-500.0,0.00019727,2]
[407878243,1772871041474,-776.0,0.00019727,2]
[407878244,1772871041484,-150.0,0.00019727,2]
[407878245,1772871041494,-150.0,0.00019727,2]
[407878246,1772871041503,-1436.0,0.00019727,2]
[407878247,1772871041512,-503.0,0.00019727,2]
[407878248,1772871041522,-500.0,0.00019727,2]
[407878249,1772871041531,-423.0,0.00019727,2]
[407878250,1772871041540,-500.0,0.00019727,2]
[407878251,1772871041550,-1212.0,0.00019727,2]
[407878252,1772871041561,-678.0,0.00019727,2]
[407878253,1772871041570,-500.0,0.00019727,2]
[407878254,1772871041579,-500.0,0.00019727,2]
[407878255,1772871041590,-500.0,0.00019727,2]
[407878256,1772871041600,-500.0,0.00019727,2]
[407878257,1772871041611,-500.0,0.00019727,2]
[407878258,1772871041622,-500.0,0.00019727,2]
[407878259,1772871041631,-150.0,0.00019727,2]
[407878260,1772871041643,-150.0,0.00019727,2]
[407878261,1772871041653,-150.0,0.00019727,2]
[407878262,1772871041664,-150.0,0.00019727,2]
[407878263,1772871041674,-500.0,0.00019727,2]
[407878264,1772871041684,-500.0,0.00019727,2]
[407878265,1772871041693,-500.0,0.00019727,2]
[407878266,1772871041704,-500.0,0.00019727,2]
[407878267,1772871041714,-173.7628891,0.00019744,2]
[407878268,1772871041723,-544.737577,0.00019782,2]
[407878269,1772871041732,-776.0,0.00019782,2]
[407878270,1772871041742,-200.0,0.00019782,2]
[407878271,1772871041751,-1436.0,0.00019782,2]
[407878272,1772871041760,-503.0,0.00019782,2]
[407878273,1772871041769,-500.0,0.00019782,2]
[407878274,1772871041778,-423.0,0.00019782,2]
[407878275,1772871041787,-500.0,0.00019782,2]
[407878276,1772871041796,-1212.0,0.00019782,2]
[407878277,1772871041805,-678.0,0.00019782,2]
[407878278,1772871041814,-500.0,0.00019782,2]
[407878279,1772871041823,-500.0,0.00019782,2]
[407878280,1772871041832,-500.0,0.00019782,2]
[407878281,1772871041842,-500.0,0.00019782,2]
[407878282,1772871041851,-623.0,0.00019782,2]
[407878283,1772871041861,-300.0,0.00019782,2]
[407878284,1772871041870,-150.0,0.00019782,2]
[407878285,1772871041879,-150.0,0.00019782,2]
[407878286,1772871041888,-150.0,0.00019782,2]
[407878287,1772871041898,-150.0,0.00019782,2]
[407878288,1772871041907,-500.0,0.00019782,2]
[407878289,1772871041916,-500.0,0.00019782,2]
[407878290,1772871041925,-175.29398025,0.00019782,2]
[407878291,1772871041934,-500.0,0.00019782,2]
[407878292,1772871041943,-2000.0,0.000198,2]
[407878293,1772871041952,-2000.0,0.000198,2]
[407878294,1772871041961,-2000.0,0.000198,2]
[407878295,1772871041970,-2000.0,0.000198,2]
[407878296,1772871041980,-2000.0,0.000198,2]
[407878297,1772871041989,-2000.0,0.000198,2]
[407878298,1772871042000,-1900.0,0.000198,7]
[407878299,1772871042011,-2856.1739563,0.000198,2]
[407878300,1772871042024,-173.7628891,0.00019822,2]
[407878301,1772871042033,-4265.96008081,0.00019822,2]
[407878302,1772871042042,-4755.29552557,0.00019822,2]
[407878303,1772871042051,-776.0,0.00019836,2]
[407878304,1772871042062,-1436.0,0.00019836,2]
[407878305,1772871042071,-503.0,0.00019836,2]
[407878306,1772871042080,-500.0,0.00019836,2]
[407878307,1772871042090,-500.0,0.00019836,2]
[407878308,1772871042100,-1212.0,0.00019836,2]
[407878309,1772871042109,-678.0,0.00019836,2]
[407878310,1772871042119,-423.0,0.00019836,2]
[407878311,1772871042130,-500.0,0.00019836,2]
[407878312,1772871042141,-500.0,0.00019836,2]
[407878313,1772871042150,-500.0,0.00019836,2]
[407878314,1772871042160,-179.48565848,0.00019836,2]
[407878315,1772871042173,-150.0,0.00019836,2]
[407878316,1772871042183,-150.0,0.00019836,2]
[407878317,1772871042194,-150.0,0.00019836,2]
[407878318,1772871042205,-150.0,0.00019836,2]
[407878319,1772871042214,-500.0,0.00019836,2]
[407878320,1772871042224,-500.0,0.00019836,2]
[407878321,1772871042233,-500.0,0.00019836,2]
[407878322,1772871042242,-189.66285771,0.0001985,2]
[407878323,1772871042252,-150.0,0.0001985,2]
[407878324,1772871042264,-521.05,0.0001985,2]
[407878325,1772871042273,-521.05,0.0001985,2]
[407878326,1772871042284,-521.05,0.0001985,2]
[407878327,1772871042293,-521.05,0.0001985,2]
[407878328,1772871042303,-521.05,0.0001985,2]
[407878329,1772871042312,-521.05,0.0001985,2]
[407878330,1772871042322,-521.05,0.0001985,2]
[407878331,1772871042331,-521.05,0.0001985,2]
[407878332,1772871042340,-521.05,0.0001985,2]
[407878333,1772871042351,-521.05,0.0001985,2]
[407878334,1772871042361,-521.05,0.0001985,2]
[407878335,1772871042370,-521.05,0.0001985,2]
[407878336,1772871042380,-521.05,0.0001985,2]
[407878337,1772871042389,-521.05,0.0001985,2]
[407878338,1772871042399,-521.05,0.0001985,2]
[407878339,1772871042410,-521.05,0.0001985,2]
[407878340,1772871042420,-521.05,0.0001985,2]
[407878341,1772871042429,-521.05,0.0001985,2]
[407878342,1772871042438,-521.05,0.0001985,2]
[407878343,1772871042447,-521.05,0.0001985,2]
[407878344,1772871042456,-521.05,0.0001985,2]
[407878345,1772871042466,-521.05,0.0001985,2]
[407878346,1772871042475,-521.05,0.0001985,2]
[407878347,1772871042483,-521.05,0.0001985,2]
[407878348,1772871042492,-521.05,0.0001985,2]
[407878349,1772871042501,-521.05,0.0001985,2]
[407878350,1772871042511,-521.05,0.0001985,2]
[407878351,1772871042520,-521.05,0.0001985,2]
[407878352,1772871042529,-521.05,0.0001985,2]
[407878353,1772871042538,-521.05,0.0001985,2]
[407878354,1772871042547,-521.05,0.0001985,2]
[407878355,1772871042556,-521.05,0.0001985,2]
[407878356,1772871042565,-521.05,0.0001985,2]
[407878357,1772871042574,-521.05,0.0001985,2]
[407878358,1772871042583,-521.05,0.0001985,2]
[407878359,1772871042593,-521.05,0.0001985,2]
[407878360,1772871042602,-521.05,0.0001985,2]
[407878361,1772871042611,-521.05,0.0001985,2]
[407878362,1772871042620,-521.05,0.0001985,2]
[407878363,1772871042629,-521.05,0.0001985,2]
[407878364,1772871042638,-978.42,0.0001985,2]
[407878365,1772871042647,-205.0,0.00019854,2]
[407878366,1772871042656,-168.0,0.0001986,2]
[407878367,1772871042665,-662.00214262,0.00019873,2]
[407878368,1772871042674,-776.0,0.00019891,2]
[407878369,1772871042683,-1436.0,0.00019891,2]
[407878370,1772871042692,-503.0,0.00019891,2]
[407878371,1772871042702,-500.0,0.00019891,2]
[407878372,1772871042711,-500.0,0.00019891,2]
[407878373,1772871042720,-1212.0,0.00019891,2]
[407878374,1772871042732,-678.0,0.00019891,2]
[407878375,1772871042742,-500.0,0.00019891,2]
[407878376,1772871042751,-500.0,0.00019891,2]
[407878377,1772871042760,-500.0,0.00019891,2]
[407878378,1772871042769,-250.0,0.00019891,2]
[407878379,1772871042778,-180.0,0.00019891,2]
[407878380,1772871042787,-150.0,0.00019891,2]
[407878381,1772871042796,-150.0,0.00019891,2]
[407878382,1772871042805,-500.0,0.00019891,2]
[407878383,1772871042814,-236.22884881,0.00019891,2]
[407878384,1772871042824,-2832.94,0.00019891,2]
[407878385,1772871042834,-3095.33,0.00019891,2]
[407878386,1772871042843,-25000.0,0.00019891,3]
[407878387,1772871042853,-500.0,0.00019899,2]
[407878388,1772871042862,-500.0,0.00019899,2]
[407878389,1772871042871,-769.18382815,0.000199,3]
[407878390,1772871042880,-2631.6307,0.000199,2]
[407878391,1772871042890,-1000.0,0.000199,2]
[407878392,1772871042901,-5000.0,0.000199,2]
[407878393,1772871042911,-10204.9278,0.000199,2]
[407878394,1772871042921,-25000.0,0.000199,3]
[407878395,1772871042932,-4265.96008081,0.000199,2]
[407878396,1772871042942,-173.7628891,0.000199,2]
[407878397,1772871042953,-222.52962526,0.000199,3]
[407878398,1772871042962,-2544.0,0.000199,7]
[407878399,1772871042972,-2856.1739563,0.000199,2]
[407878400,1772871042982,-2132.46388994,0.000199,2]
[407878401,1772871042992,-10000.0,0.000199,2]
[407878402,1772871043003,-25000.0,0.000199,3]
[407878403,1772871043012,-7554.06233121,0.000199,2]
[407878404,1772871043025,-776.0,0.00019946,2]
[407878405,1772871043035,-1436.0,0.00019946,2]
[407878406,1772871043045,-503.0,0.00019946,2]
[407878408,1772871043054,-500.0,0.00019946,2]
[407878409,1772871043065,-500.0,0.00019946,2]
[407878410,1772871043076,-1212.0,0.00019946,2]
[407878411,1772871043087,-678.0,0.00019946,2]
[407878412,1772871043097,-500.0,0.00019946,2]
[407878413,1772871043106,-250.0,0.00019946,2]
[407878414,1772871043116,-250.0,0.00019946,2]
[407878415,1772871043125,-500.0,0.00019946,2]
[407878416,1772871043134,-151.0,0.00019947,2]
[407878417,1772871043143,-300126.52033476,0.0001995,15]
[407878418,1772871043153,-150.0,0.00019973,2]
[407878419,1772871043162,-151.0,0.00019997,2]
[407878420,1772871043173,-672.16452504,0.00019999,2]
[407878421,1772871043182,-309.98346331,0.00019999,2]
[407878422,1772871043191,-300.0,0.00019999,2]
[407878423,1772871043200,-666.0,0.00019999,2]
[407878424,1772871043210,-1269.30526258,0.00019999,5]
[407878425,1772871043220,-1269.30526258,0.00019999,5]
[407878426,1772871043229,-1856.0,0.0002,2]
[407878427,1772871043238,-1840.0,0.0002,2]
[407878428,1772871043247,-3541593.44815389,0.0002,2]
[407878463,1772871046396,-1744.1211945,0.000192,2]
[407878468,1772871735269,248.24429007,0.00011333,2]
[407878469,1772871735392,500.0,0.00011333,2]
[407878470,1772871735918,500.0,0.00011333,2]
[407878471,1772871736437,500.0,0.00011333,2]
[407878472,1772871736909,500.0,8e-05,2]
[407878473,1772871737372,510.04779469,8e-05,2]
[407878474,1772871737892,228.06401281,0.00011333,2]
[407878475,1772871738390,500.0,0.00011333,2]
[407878476,1772871738873,874.1728655,8e-05,2]
[407878478,1772872015127,-210.63588962,0.00013333,2]
[407878488,1772872231443,-293.36411038,0.00013333,2]
[407878489,1772872231453,-519.0,0.00013333,2]
[407878490,1772872231463,-200.0,0.00014764,2]
[407878491,1772872231472,-150.07,0.00016123,2]
[407878492,1772872231481,-200.0,0.00016185,2]
[407878493,1772872231491,-504.0,0.00016363,4]
[407878494,1772872231503,-300.0,0.00016364,2]
[407878495,1772872231512,-150.0,0.00016365,2]
[407878496,1772872231521,-1552.28106998,0.00016365,2]
[407878497,1772872231533,-10909.91893002,0.00016365,2]
[407878498,1772872231542,-150.07,0.00016393,2]
[407878499,1772872231552,-151.0,0.00016438,2]
[407878500,1772872231561,-578.20924308,0.0001646,2]
[407878501,1772872231572,-150.07,0.00016663,2]
[407878502,1772872231583,-190.761278,0.00016723,7]
[407878503,1772872231593,-204.18678635,0.00016746,2]
[407878504,1772872231602,-174.61919141,0.00016813,2]
[407878505,1772872231612,-227.78902697,0.00016813,2]
[407878507,1772872231621,-693.3919763,0.00016813,2]
[407878509,1772872231630,-262.90206542,0.00016813,2]
[407878511,1772872231639,-151.0,0.00016813,2]
[407878513,1772872231649,-693.3919763,0.00016813,2]
[407878515,1772872231658,-300.0,0.00016822,2]
[407878517,1772872231667,-2577.77,0.00016823,2]
[407878519,1772872231676,-10713.0,0.00016823,2]
[407878521,1772872231686,-9999.99,0.00016823,2]
[407878523,1772872231695,-1546.66,0.00016823,2]
[407878525,1772872231708,-1001.7499,0.00016823,2]
[407878527,1772872231718,-151.0,0.00016868,2]
[407878529,1772872231728,-719.04747942,0.00016868,2]
[407878531,1772872231737,-151.0,0.00016923,2]
[407878546,1772872231746,-745.65223616,0.00016923,2]
[407878547,1772872232116,-150.07,0.00016933,2]
[407878548,1772872232129,-151.0,0.00016978,2]
[407878549,1772872232139,-773.2413689,0.00016978,2]
[407878550,1772872232149,-155.05699457,0.00017033,2]
[407878551,1772872232158,-801.85129955,0.00017033,2]
[407878552,1772872232167,-500.0,0.0001705,2]
[407878553,1772872232176,-831.51979763,0.00017088,2]
[407878554,1772872232186,-862.28603014,0.00017143,2]
[407878555,1772872232195,-894.19061326,0.00017198,2]
[407878556,1772872232205,-150.07,0.00017203,2]
[407878557,1772872232214,-927.27566595,0.00017253,2]
[407878558,1772872232224,-961.58486559,0.00017308,2]
[407878559,1772872232233,-1000.0,0.00017329,2]
[407878560,1772872232243,-181.08010149,0.00017361,2]
[407878561,1772872232252,-719.04747942,0.00017361,2]
[407878562,1772872232261,-404.69161307,0.00017361,2]
[407878563,1772872232270,-997.16350561,0.00017363,2]
[407878564,1772872232280,-2000.0,0.00017411,2]
[407878565,1772872232289,-150.07,0.00017473,2]
[407878566,1772872232298,-342.57665036,0.00017561,2]
[407878567,1772872232307,-200.0,0.00017561,2]
[407878568,1772872232316,-150.07,0.00017743,2]
[407878569,1772872232326,-2000.0,0.0001775,2]
[407878570,1772872232335,-187.78006525,0.00017909,2]
[407878571,1772872232345,-745.65223616,0.00017909,2]
[407878572,1772872232355,-150.07,0.00018013,2]
[407878573,1772872232368,-525.09,0.00018095,2]
[407878574,1772872232378,-1500.0,0.00018154,2]
[407878575,1772872232388,-479.73,0.00018219,2]
[407878576,1772872232398,-150.07,0.00018283,2]
[407878577,1772872232408,-500.0,0.00018321,2]
[407878578,1772872232419,-194.72792766,0.00018457,2]
[407878579,1772872232428,-773.2413689,0.00018457,2]
[407878580,1772872232438,-172.24,0.00018548,2]
[407878581,1772872232450,-150.07,0.00018553,2]
[407878582,1772872232459,-150.07,0.00018823,2]
[407878583,1772872232468,-200.0,0.00018894,2]
[407878584,1772872232478,-168.0,0.00018924,2]
[407878585,1772872232487,-267.72127624,0.00019005,2]
[407878586,1772872232499,-801.85129955,0.00019005,2]
[407878587,1772872232509,-168.0,0.00019029,2]
[407878588,1772872232518,-150.07,0.00019093,2]
[407878589,1772872232527,-479.73,0.0001913,2]
[407878590,1772872232536,-160.0,0.00019168,2]
[407878591,1772872232547,-710.38,0.00019178,30]
[407878592,1772872232556,-172.78723296,0.00019193,2]
[407878593,1772872232567,-599.60298507,0.00019199,2]
[407878594,1772872232583,-2577.77,0.00019346,2]
[407878595,1772872232593,-1546.66,0.00019346,2]
[407878596,1772872232603,-150.09,0.00019363,2]
[407878597,1772872232614,-3000.0,0.00019363,2]
[407878598,1772872232623,-259.13725688,0.00019363,2]
[407878599,1772872232634,-2604.868993,0.00019363,2]
[407878600,1772872232644,-733.32656971,0.00019363,2]
[407878601,1772872232653,-1000.0,0.00019363,2]
[407878602,1772872232663,-1036.15189384,0.00019363,2]
[407878603,1772872232672,-205.33524266,0.00019363,2]
[407878604,1772872232681,-2500.0,0.00019363,2]
[407878605,1772872232691,-500.0,0.00019363,2]
[407878606,1772872232701,-271.67882507,0.00019363,2]
[407878607,1772872232710,-2500.0,0.00019363,2]
[407878608,1772872232720,-500.0,0.00019363,2]
[407878609,1772872232729,-315.19202845,0.00019363,2]
[407878610,1772872232739,-151.0,0.00019363,2]
[407878611,1772872232748,-151.0,0.00019363,2]
[407878612,1772872232761,-250.0,0.00019363,2]
[407878613,1772872232771,-151.0,0.00019363,2]
[407878614,1772872232780,-250.0,0.00019363,2]
[407878615,1772872232790,-151.0,0.00019363,2]
[407878616,1772872232800,-250.0,0.00019363,2]
[407878617,1772872232810,-151.0,0.00019363,2]
[407878618,1772872232819,-250.0,0.00019363,2]
[407878619,1772872232829,-151.0,0.00019363,2]
[407878620,1772872232838,-250.0,0.00019363,2]
[407878621,1772872232847,-151.0,0.00019363,2]
[407878622,1772872232856,-250.0,0.00019363,2]
[407878623,1772872232867,-151.0,0.00019363,2]
[407878624,1772872232877,-250.0,0.00019363,2]
[407878625,1772872232886,-151.0,0.00019363,2]
[407878626,1772872232896,-250.0,0.00019363,2]
[407878627,1772872232905,-250.0,0.00019363,2]
[407878628,1772872232914,-151.0,0.00019363,2]
[407878629,1772872232923,-250.0,0.00019363,2]
[407878630,1772872232933,-169.27143825,0.00019363,2]
[407878631,1772872232944,-250.0,0.00019363,2]
[407878632,1772872232955,-500.0,0.00019363,2]
[407878633,1772872232965,-500.0,0.00019363,2]
[407878634,1772872232974,-500.0,0.00019363,2]
[407878635,1772872232983,-500.0,0.00019363,2]
[407878636,1772872232993,-500.0,0.00019363,2]
[407878637,1772872233003,-1000.0,0.00019363,2]
[407878638,1772872233015,-1000.0,0.00019363,2]
[407878639,1772872233024,-500.0,0.00019363,2]
[407878640,1772872233034,-1000.0,0.00019363,2]
[407878641,1772872233044,-500.0,0.00019363,2]
[407878642,1772872233053,-250.0,0.00019363,2]
[407878643,1772872233062,-1000.0,0.00019363,2]
[407878644,1772872233072,-500.0,0.00019363,2]
[407878645,1772872233081,-250.0,0.00019363,2]
[407878646,1772872233091,-500.0,0.00019363,2]
[407878647,1772872233100,-1000.0,0.00019363,2]
[407878648,1772872233109,-250.0,0.00019363,2]
[407878649,1772872233118,-1000.0,0.00019363,2]
[407878650,1772872233128,-500.0,0.00019363,2]
[407878651,1772872233137,-250.0,0.00019363,2]
[407878652,1772872233146,-500.0,0.00019363,2]
[407878653,1772872233155,-250.0,0.00019363,2]
[407878654,1772872233164,-269.917619,0.00019363,2]
[407878655,1772872233174,-200.0,0.00019363,2]
[407878656,1772872233183,-504.0,0.00019394,7]
[407878657,1772872233194,-168.0,0.00019423,2]
[407878658,1772872233205,-168.0,0.00019429,2]
[407878659,1772872233214,-831.51979763,0.00019553,2]
[407878660,1772872233223,-2763.884,0.00019562,2]
[407878661,1772872233232,-180.225,0.00019562,2]
[407878662,1772872233241,-3867.046,0.000196,2]
[407878663,1772872233250,-10000.01,0.00019662,2]
[407878664,1772872233260,-500.0,0.00019672,2]
[407878665,1772872233269,-500.0,0.00019672,2]
[407878666,1772872233278,-582.0,0.00019672,2]
[407878667,1772872233288,-154.82119296,0.00019672,2]
[407878668,1772872233298,-150.0,0.00019672,2]
[407878669,1772872233307,-500.0,0.00019672,2]
[407878670,1772872233316,-250.0,0.00019672,2]
[407878671,1772872233327,-150.0,0.00019672,2]
[407878672,1772872233336,-250.0,0.00019672,2]
[407878673,1772872233346,-500.0,0.00019672,2]
[407878674,1772872233357,-500.0,0.00019672,2]
[407878675,1772872233368,-150.0,0.00019672,2]
[407878676,1772872233377,-500.0,0.00019672,2]
[407878677,1772872233387,-1010.0,0.00019672,2]
[407878678,1772872233396,-565.0,0.00019672,2]
[407878679,1772872233406,-150.0,0.00019672,2]
[407878680,1772872233416,-150.0,0.00019672,2]
[407878681,1772872233427,-150.0,0.00019672,2]
[407878682,1772872233437,-22827.1089,0.000197,2]
[407878683,1772872233447,-500.0,0.00019727,2]
[407878684,1772872233458,-500.0,0.00019727,2]
[407878685,1772872233468,-582.0,0.00019727,2]
[407878686,1772872233478,-150.0,0.00019727,2]
[407878687,1772872233488,-500.0,0.00019727,2]
[407878688,1772872233500,-150.0,0.00019727,2]
[407878689,1772872233509,-500.0,0.00019727,2]
[407878690,1772872233519,-500.0,0.00019727,2]
[407878691,1772872233528,-150.0,0.00019727,2]
[407878692,1772872233538,-500.0,0.00019727,2]
[407878693,1772872233548,-1010.0,0.00019727,2]
[407878694,1772872233557,-565.0,0.00019727,2]
[407878695,1772872233567,-150.0,0.00019727,2]
[407878696,1772872233579,-500.0,0.00019782,2]
[407878697,1772872233589,-500.0,0.00019782,2]